bitfinex-derivatives/quotes_BNBF0:USTF0_20230901
["timestamp","ask_amount","ask_price","bid_price","bid_amount"]
[1693604268068,5.28298507,213.4,213.01,0.07698321]
[1693604268366,0.17250545,213.39,213.01,0.07698321]
[1693604270672,0.17250545,213.39,213.0,0.07698321]
[1693604275373,0.17250545,213.38,213.0,0.07698321]
[1693604275574,0.17250545,213.4,213.0,0.07698321]
[1693604275776,0.17250545,213.39,213.0,0.07698321]
[1693604275970,0.17250545,213.38,213.0,0.07698321]
[1693604276275,0.17250545,213.37,213.0,0.07698321]
[1693604276475,0.17250545,213.36,213.0,0.07698321]
[1693604276675,0.17250545,213.35,213.0,0.07698321]
[1693604276879,0.17250545,213.34,213.0,0.07698321]
[1693604277177,0.17250545,213.33,213.0,0.07698321]
[1693604277368,0.17250545,213.32,213.0,0.07698321]
[1693604277575,0.17250545,213.31,213.0,0.07698321]
[1693604277774,0.17250545,213.3,213.0,0.07698321]
[1693604277974,5.11047962,213.41,213.0,0.07698321]
[1693604278171,0.17251795,213.4,213.0,0.07698321]
[1693604279472,5.28299757,213.4,213.0,0.07698321]
[1693604279677,0.17251795,213.39,212.99,0.07698321]
[1693604280075,0.17251795,213.39,213.0,0.07698321]
[1693604281775,0.17251795,213.39,212.99,0.07698321]
[1693604283884,0.17251795,213.38,212.99,0.07698321]
[1693604284183,0.17251795,213.37,212.99,0.07698321]
[1693604284384,0.17251795,213.36,212.99,0.07698321]
[1693604284584,0.17251795,213.4,212.99,0.07698321]
[1693604284776,0.17251795,213.39,212.99,0.07698321]
[1693604284978,0.17251795,213.38,212.99,0.07698321]
[1693604285184,0.17251795,213.37,212.99,0.07698321]
[1693604285383,0.17251795,213.36,212.99,0.07698321]
[1693604285578,0.17251795,213.4,212.99,0.07698321]
[1693604286882,0.17251795,213.4,212.99,0.07693698]
[1693604288783,0.17251795,213.4,213.0,0.07693698]
[1693604293689,5.28052232,213.4,213.0,0.07693698]
[1693604293885,0.17251795,213.39,213.0,0.07693698]
[1693604294290,0.17251795,213.38,213.0,0.07693698]
[1693604294492,0.17251795,213.37,213.0,0.07693698]
[1693604294788,0.17251795,213.36,213.0,0.07693698]
[1693604295091,0.17251795,213.35,213.0,0.07693698]
[1693604295291,0.17251795,213.34,213.0,0.07693698]
[1693604295485,0.17251795,213.33,213.0,0.07693698]
[1693604295690,0.17251795,213.32,213.0,0.07693698]
[1693604295891,0.17251795,213.31,213.0,0.07693698]
[1693604296086,0.17251795,213.39,213.0,0.07693698]
[1693604296300,0.17251795,213.38,213.0,0.07693698]
[1693604296489,0.17251795,213.37,213.0,0.07693698]
[1693604296692,0.17251795,213.36,213.0,0.07693698]
[1693604296890,0.17251795,213.35,213.0,0.07693698]
[1693604297086,0.17251795,213.39,213.0,0.07693698]
[1693604297290,0.17251795,213.38,213.0,0.07693698]
[1693604297492,0.17251795,213.38,212.86,6.64139135]
[1693604297493,0.17251795,213.37,213.01,0.07693698]
[1693604297692,0.17251795,213.36,213.01,0.07693698]
[1693604297886,0.17251795,213.35,213.01,0.07693698]
[1693604298091,0.17251795,213.34,213.01,0.07693698]
[1693604298291,0.17251795,213.33,213.01,0.07693698]
[1693604298487,0.17251795,213.4,213.01,0.07693698]
[1693604298692,0.17251795,213.39,213.01,0.07693698]
[1693604298887,0.17251795,213.38,213.01,0.07693698]
[1693604299094,0.17251795,213.37,213.01,0.07693698]
[1693604299392,0.17251795,213.36,213.01,0.07693698]
[1693604299588,0.17251795,213.4,213.01,0.07693698]
[1693604299791,0.17251795,213.39,213.01,0.07693698]
[1693604299988,0.17251795,213.4,213.01,0.07693698]
[1693604300191,0.17251795,213.39,213.01,0.07693698]
[1693604300392,0.17251795,213.38,213.01,0.07693698]
[1693604300593,0.17251795,213.37,213.01,0.07693698]
[1693604300793,0.17251795,213.36,213.01,0.07693698]
[1693604301093,0.17251795,213.35,213.01,0.07693698]
[1693604301297,0.17251795,213.34,213.01,0.07693698]
[1693604301594,0.17251795,213.33,213.01,0.07693698]
[1693604301788,0.17251795,213.32,213.01,0.07693698]
[1693604301990,0.17251795,213.31,213.01,0.07693698]
[1693604302191,5.10800437,213.4,213.01,0.07693698]
[1693604302391,0.17251318,213.39,213.01,0.07693698]
[1693604303191,0.17251318,213.38,213.01,0.07693698]
[1693604303392,0.17251318,213.4,213.01,0.07693698]
[1693604303588,0.17251318,213.39,213.01,0.07693698]
[1693604303788,0.17251318,213.38,213.01,0.07693698]
[1693604304094,0.17251318,213.37,213.02,0.07693698]
[1693604304294,0.17251318,213.36,213.02,0.07693698]
[1693604304489,0.17251318,213.35,213.02,0.07693698]
[1693604304699,0.17251318,213.34,213.02,0.07693698]
[1693604304897,0.17251318,213.4,213.02,0.07693698]
[1693604305099,0.17251318,213.39,213.02,0.07693698]
[1693604305395,0.17251318,213.38,213.02,0.07693698]
[1693604305695,0.17251318,213.37,213.01,0.07693698]
[1693604305995,0.17251318,213.36,213.02,0.07693698]
[1693604306193,0.17251318,213.35,213.01,0.07693698]
[1693604306391,0.17251318,213.34,213.02,0.07693698]
[1693604306592,0.17251318,213.4,213.02,0.07693698]
[1693604306793,0.17251318,213.39,213.01,0.07693698]
[1693604306992,0.17251318,213.38,213.01,0.07693698]
[1693604307190,0.17251318,213.4,213.01,0.07693698]
[1693604307395,0.17251318,213.39,213.02,0.07693698]
[1693604307592,0.17251318,213.38,213.02,0.07693698]
[1693604307797,0.17251318,213.37,213.02,0.07693698]
[1693604307992,0.17251318,213.36,213.02,0.07693698]
[1693604308195,0.17251318,213.35,213.01,0.07693698]
[1693604308395,0.17251318,213.34,213.01,0.07693698]
[1693604308690,0.17251318,213.33,213.01,0.07693698]
[1693604308892,0.17251318,213.32,213.01,0.07693698]
[1693604309096,0.17251318,213.41,213.01,0.07693698]
[1693604309296,0.17251318,213.4,213.01,0.07693698]
[1693604309502,0.17251318,213.39,213.01,0.07693698]
[1693604309698,0.17251318,213.38,213.01,0.07693698]
[1693604309902,0.17251318,213.4,213.01,0.07693698]
[1693604310101,0.17251318,213.39,213.01,0.07693698]
[1693604310401,0.17251318,213.38,213.01,0.07693698]
[1693604310601,0.17251318,213.37,213.01,0.07693698]
[1693604310902,0.17251318,213.36,213.01,0.07693698]
[1693604311101,0.17251318,213.41,213.01,0.07693698]
[1693604311303,0.17251318,213.4,213.01,0.07693698]
[1693604311602,0.17251318,213.39,213.01,0.07693698]
[1693604311805,0.17251318,213.41,213.01,0.07693698]
[1693604312002,0.17251318,213.4,213.01,0.07693698]
[1693604312202,0.17251318,213.41,213.01,0.07693698]
[1693604317802,0.17251318,213.41,213.02,0.07693698]
[1693604317999,0.17251318,213.42,213.01,0.07693698]
[1693604318199,0.17251318,213.41,213.01,0.07693698]
[1693604318402,0.17251318,213.4,213.01,0.07693698]
[1693604318602,0.17251318,213.39,213.01,0.07693698]
[1693604318803,0.17251318,213.38,213.01,0.07693698]
[1693604318999,0.17251318,213.37,213.01,0.07693698]
[1693604319200,0.17251318,213.36,213.01,0.07693698]
[1693604319399,0.17251318,213.35,213.01,0.07693698]
[1693604319597,0.17251318,213.34,213.01,0.07693698]
[1693604319800,0.17251318,213.33,213.01,0.07693698]
[1693604320105,0.17251318,213.32,213.01,0.07693698]
[1693604320301,5.10800437,213.42,213.01,0.07693698]
[1693604320500,0.17250945,213.41,213.01,0.07693698]
[1693604321199,0.17250945,213.41,213.02,0.07693698]
[1693604321401,0.17250945,213.42,213.02,0.07693698]
[1693604321703,0.17250945,213.41,213.02,0.07693698]
[1693604321998,0.17250945,213.4,213.02,0.07693698]
[1693604322204,0.17250945,213.42,213.02,0.07693698]
[1693604322398,0.17250945,213.41,213.02,0.07693698]
[1693604322603,0.17250945,213.4,213.02,0.07693698]
[1693604322804,0.17250945,213.39,213.02,0.07693698]
[1693604323004,0.17250945,213.38,213.02,0.07693698]
[1693604323305,0.17250945,213.37,213.02,0.07693698]
[1693604323604,0.17250945,213.36,213.02,0.07693698]
[1693604323807,0.17250945,213.35,213.02,0.07693698]
[1693604324104,0.17250945,213.34,213.02,0.07693698]
[1693604324304,0.17250945,213.33,213.02,0.07693698]
[1693604324502,0.17250945,213.32,213.02,0.07693698]
[1693604324704,5.10800437,213.43,213.02,0.07693698]
[1693604324903,0.17250942,213.42,213.02,0.07693698]
[1693604327301,5.28051379,213.42,213.02,0.07693698]
[1693604327504,0.17250942,213.41,213.02,0.07693698]
[1693604338110,5.28051379,213.41,213.02,0.07693698]
[1693604338310,0.17250942,213.4,213.02,0.07693698]
[1693604339711,0.17250942,213.4,213.03,0.07693698]
[1693604339905,0.17250942,213.4,213.02,0.07693698]
[1693604340107,0.17250942,213.4,213.03,0.07693698]
[1693604340312,0.17250942,213.4,213.02,0.07693698]
[1693604340510,0.17250942,213.4,213.03,0.07693698]
[1693604340810,0.17250942,213.39,213.03,0.07693698]
[1693604341011,0.17250942,213.38,213.03,0.07693698]
[1693604341310,0.17250942,213.37,213.03,0.07693698]
[1693604341511,0.17250942,213.36,213.03,0.07693698]
[1693604341710,0.17250942,213.41,213.03,0.07693698]
[1693604341909,0.17250942,213.4,213.03,0.07693698]
[1693604342110,0.17250942,213.39,213.03,0.07693698]
[1693604342311,0.17250942,213.38,213.03,0.07693698]
[1693604342512,0.17250942,213.37,213.03,0.07693698]
[1693604342714,0.17250942,213.36,213.03,0.07693698]
[1693604342916,0.17250942,213.35,213.03,0.07693698]
[1693604343216,0.17250942,213.34,213.03,0.07693698]
[1693604343409,0.17250942,213.33,213.03,0.07693698]
[1693604343609,0.17250942,213.32,213.03,0.07693698]
[1693604343815,5.10800437,213.42,213.03,0.07693698]
[1693604344016,0.1725087,213.41,213.03,0.07693698]
[1693604344917,5.28051307,213.41,213.03,0.07693698]
[1693604345214,0.1725087,213.4,213.03,0.07693698]
[1693604355430,0.1725087,213.39,213.03,0.07693698]
[1693604355725,0.1725087,213.38,213.03,0.07693698]
[1693604355925,0.1725087,213.37,213.03,0.07693698]
[1693604356125,5.10800437,213.42,213.03,0.07693698]
[1693604356126,0.1725087,213.36,213.03,0.07693698]
[1693604356318,0.1725087,213.41,213.03,0.07693698]
[1693604356521,0.1725087,213.4,213.03,0.07693698]
[1693604356724,0.1725087,213.39,213.03,0.07693698]
[1693604356925,0.1725087,213.38,213.03,0.07693698]
[1693604357121,0.1725087,213.37,213.03,0.07693698]
[1693604357426,0.1725087,213.36,213.03,0.07693698]
[1693604357726,0.1725087,213.35,213.03,0.07693698]
[1693604358027,0.1725087,213.34,213.03,0.07693698]
[1693604358225,0.1725087,213.33,213.03,0.07693698]
[1693604358525,0.1725087,213.32,213.03,0.07693698]
[1693604358727,5.10800437,213.41,213.03,0.07693698]
[1693604358928,0.17250591,213.4,213.03,0.07693698]
[1693604367130,0.17250591,213.4,213.02,0.07693698]
[1693604367333,0.17250591,213.4,213.03,0.07693698]
[1693604367537,0.17250591,213.4,213.02,0.07693698]
[1693604367736,0.17250591,213.4,213.03,0.07693698]
[1693604372944,0.17250591,213.4,213.02,0.07693698]
[1693604373142,0.17250591,213.4,213.03,0.07693698]
[1693604373443,0.17250591,213.4,213.02,0.07693698]
[1693604373843,0.17250591,213.4,213.03,0.07693698]
[1693604381946,0.17250591,213.39,213.03,0.07693698]
[1693604382149,0.17250591,213.38,213.03,0.07693698]
[1693604382349,0.17250591,213.37,213.03,0.07693698]
[1693604382648,0.17250591,213.36,213.03,0.07693698]
[1693604382850,0.17250591,213.35,213.03,0.07693698]
[1693604383050,0.17250591,213.34,213.03,0.07693698]
[1693604383242,0.17250591,213.33,213.03,0.07693698]
[1693604383447,0.17250591,213.32,213.03,0.07693698]
[1693604383647,5.10800437,213.42,213.03,0.07693698]
[1693604383849,0.17250529,213.41,213.03,0.07693698]
[1693604385048,5.28050966,213.41,213.03,0.07693698]
[1693604385246,0.17250529,213.4,213.03,0.07693698]
[1693604388446,0.17250529,213.41,213.03,0.07693698]
[1693604388651,0.17250529,213.4,213.03,0.07693698]
[1693604388951,0.17250529,213.39,213.03,0.07693698]
[1693604389151,0.17250529,213.38,213.03,0.07693698]
[1693604389346,0.17250529,213.37,213.03,0.07693698]
[1693604389544,0.17250529,213.36,213.03,0.07693698]
[1693604389748,0.17250529,213.35,213.03,0.07693698]
[1693604389946,0.17250529,213.34,213.03,0.07693698]
[1693604390150,0.17250529,213.33,213.03,0.07693698]
[1693604390452,0.17250529,213.32,213.03,0.07693698]
[1693604390648,0.17250529,213.4,213.03,0.07693698]
[1693604390850,0.17250504,213.39,213.03,0.07693698]
[1693604391050,0.17250504,213.38,213.03,0.07693698]
[1693604391248,0.17250504,213.37,213.03,0.07693698]
[1693604391546,0.17250504,213.36,213.03,0.07693698]
[1693604391750,0.17250504,213.35,213.03,0.07693698]
[1693604392050,0.17250504,213.34,213.03,0.07693698]
[1693604392251,0.17250504,213.41,213.03,0.07693698]
[1693604392452,0.17250504,213.4,213.03,0.07693698]
[1693604392652,0.17250504,213.39,213.03,0.07693698]
[1693604392852,0.17250504,213.38,213.03,0.07693698]
[1693604393053,0.17250504,213.37,213.03,0.07693698]
[1693604393247,0.17250504,213.36,213.03,0.07693698]
[1693604393451,0.17250504,213.41,213.03,0.07693698]
[1693604393748,0.17250504,213.4,213.03,0.07693698]
[1693604393950,0.17250504,213.39,213.03,0.07693698]
[1693604394152,0.17250504,213.38,213.03,0.07693698]
[1693604394353,0.17250504,213.37,213.03,0.07693698]
[1693604394654,0.17250504,213.36,213.03,0.07693698]
[1693604394850,0.17250504,213.41,213.03,0.07693698]
[1693604395052,0.17250504,213.4,213.03,0.07693698]
[1693604395252,0.17250504,213.39,213.03,0.07693698]
[1693604395453,0.17250504,213.38,213.03,0.07693698]
[1693604395656,0.17250504,213.37,213.03,0.07693698]
[1693604395855,0.17250504,213.36,213.03,0.07693698]
[1693604396054,0.17250504,213.35,213.03,0.07693698]
[1693604396256,0.17250504,213.41,213.03,0.07693698]
[1693604396457,0.17250504,213.4,213.08,0.07693698]
[1693604396652,0.17250504,213.39,213.08,0.07693698]
[1693604396958,5.10800437,213.49,213.11,0.07693698]
[1693604397157,7.15120612,213.52,213.11,0.07693698]
[1693604397158,0.17243998,213.48,213.11,0.07693698]
[1693604397358,0.17243998,213.47,213.11,0.07693698]
[1693604397560,0.17243998,213.49,213.08,0.07693698]
[1693604397760,0.17243998,213.48,213.09,0.93912584]
[1693604397956,0.17243998,213.51,213.1,0.86218886]
[1693604398156,0.17243998,213.5,213.08,0.07693698]
[1693604398359,0.17243998,213.51,213.09,0.8621866]
[1693604398659,0.17243998,213.5,213.07,0.07693698]
[1693604398853,0.17243998,213.53,213.08,0.86218745]
[1693604399056,0.17243998,213.52,213.08,0.86218745]
[1693604399258,0.17243998,213.53,213.08,0.86218745]
[1693604399454,0.17243998,213.52,213.08,0.86218745]
[1693604399657,0.17243998,213.51,213.09,0.86218745]
[1693604399856,0.17243998,213.5,213.06,0.07693698]
[1693604400054,0.17243998,213.49,213.07,0.8621827]
[1693604400260,0.17243998,213.48,213.07,0.8621827]
[1693604400556,0.17243998,213.47,213.07,0.8621827]
[1693604400859,0.17243998,213.46,213.08,0.8621827]
[1693604401157,0.17243998,213.45,213.09,0.8621827]
[1693604401355,0.17243998,213.55,213.05,0.07693698]
[1693604401557,0.17243998,213.54,213.06,0.86219438]
[1693604401753,0.17243998,213.53,213.06,0.86219438]
[1693604402061,0.17243998,213.52,213.06,0.86219438]
[1693604402258,0.17243998,213.55,213.05,0.86219438]
[1693604402459,0.17243998,213.54,213.06,0.86219438]
[1693604402660,0.17243998,213.55,213.05,0.86219438]
[1693604402861,0.17243998,213.54,213.06,0.86219438]
[1693604403055,0.17243998,213.53,213.06,0.86219438]
[1693604403356,0.17243998,213.52,213.06,0.86219438]
[1693604403660,0.17243998,213.51,213.07,0.86219438]
[1693604403855,0.17243998,213.56,213.05,0.86219438]
[1693604404061,0.17243998,213.55,213.06,0.86219438]
[1693604404261,0.17243998,213.54,213.07,0.86219438]
[1693604404460,0.17243998,213.53,213.08,0.86219438]
[1693604404763,0.17243998,213.52,213.09,0.86219438]
[1693604404958,0.17243998,213.58,213.05,0.86219438]
[1693604405156,0.17243998,213.57,213.06,0.86219438]
[1693604405357,0.17243998,213.58,213.07,0.86219438]
[1693604405662,0.17243998,213.58,213.04,0.07693698]
[1693604405663,0.17243998,213.57,213.08,0.86219438]
[1693604405862,0.17243998,213.58,213.05,0.86219438]
[1693604406164,0.17243998,213.57,213.06,0.86219438]
[1693604406363,0.17243998,213.56,213.07,0.86219438]
[1693604406562,5.10800437,213.61,213.04,0.86219438]
[1693604406563,0.17243998,213.6,213.04,0.86219438]
[1693604406761,0.17243998,213.59,213.05,0.86219438]
[1693604406957,0.17243998,213.6,213.04,0.86219438]
[1693604407162,0.17243998,213.59,213.05,0.86219438]
[1693604407361,0.17243998,213.58,213.06,0.86219438]
[1693604407555,0.17243998,213.6,213.04,0.86219438]
[1693604407754,0.17243998,213.6,213.05,0.86219438]
[1693604407955,0.17243998,213.6,213.04,0.86219438]
[1693604408155,0.17243998,213.6,213.05,0.86219438]
[1693604408357,0.17243998,213.6,213.04,0.86219438]
[1693604408556,0.17243998,213.59,213.05,0.86219438]
[1693604408757,0.17243998,213.61,213.04,0.86219438]
[1693604409063,0.17243998,213.6,213.05,0.86219438]
[1693604409259,0.17243998,213.59,213.06,0.86219438]
[1693604409467,0.17243998,213.58,213.07,0.86219438]
[1693604409762,0.17243998,213.57,213.08,0.86219438]
[1693604409960,0.17243998,213.62,213.04,0.86219438]
[1693604410163,0.17243998,213.61,213.05,0.86219438]
[1693604410360,0.17243998,213.62,213.04,0.86219438]
[1693604410665,0.17243998,213.61,213.05,0.86219438]
[1693604410859,0.17243998,213.62,213.06,0.86219438]
[1693604411060,0.17243998,213.61,213.07,0.86219438]
[1693604411259,0.17243998,213.6,213.08,0.86219438]
[1693604411463,0.17243998,213.62,213.04,0.86219438]
[1693604411663,0.17243998,213.61,213.05,0.86219438]
[1693604411866,0.17243998,213.6,213.06,0.86219438]
[1693604412167,0.17243998,213.59,213.07,0.86219438]
[1693604412368,0.17243998,213.62,213.04,0.86219438]
[1693604412562,0.17243998,213.61,213.05,0.86219438]
[1693604412767,0.17243998,213.63,213.04,0.86219438]
[1693604413065,0.17243998,213.62,213.05,0.86219438]
[1693604413263,0.17243998,213.63,213.04,0.86219438]
[1693604413468,0.17243998,213.63,213.03,0.07693698]
[1693604413469,0.17243998,213.62,213.05,0.86219438]
[1693604413770,0.17243998,213.61,213.06,0.86219438]
[1693604413973,0.17243998,213.6,213.07,0.86219438]
[1693604414172,0.17243998,213.59,213.04,0.86219438]
[1693604414371,0.17243998,213.63,213.05,0.86219438]
[1693604414574,0.17243998,213.62,213.04,0.93913136]
[1693604414772,0.17243998,213.61,213.05,0.86219438]
[1693604415070,0.17243998,213.6,213.06,0.86219438]
[1693604415273,0.17243998,213.59,213.07,0.86219438]
[1693604415465,0.17243998,213.63,213.04,0.93913136]
[1693604415667,0.17243998,213.62,213.05,0.86219438]
[1693604415967,0.17243998,213.61,213.05,0.86219438]
[1693604416168,0.17243998,213.6,213.05,0.86219438]
[1693604416368,0.17243998,213.59,213.05,0.86219438]
[1693604416672,0.17243998,213.58,213.05,0.86219438]
[1693604416869,0.17243998,213.57,213.05,0.86219438]
[1693604417070,0.17243998,213.56,213.05,0.86219438]
[1693604417266,0.17243998,213.55,213.05,0.86219438]
[1693604417471,0.17243998,213.54,213.05,0.86219438]
[1693604417774,0.17243998,213.53,213.05,0.86219438]
[1693604417973,0.17243998,213.63,213.05,0.86219438]
[1693604418173,0.17243998,213.62,213.05,0.86219438]
[1693604418377,0.17243998,213.61,213.05,0.86219438]
[1693604418673,0.17243998,213.6,213.05,0.86219438]
[1693604418874,5.10800437,213.64,213.05,0.86219438]
[1693604418875,0.17243998,213.59,213.05,0.86219438]
[1693604419072,0.17243998,213.58,213.05,0.86219438]
[1693604419267,0.17243998,213.57,213.05,0.93913136]
[1693604419468,0.17243998,213.56,213.06,0.86219438]
[1693604419675,0.17243998,213.55,213.06,0.86219438]
[1693604419875,0.17243998,213.54,213.06,0.86219438]
[1693604420076,0.17243998,213.53,213.06,0.86219438]
[1693604420270,0.17243998,213.52,213.06,0.86219438]
[1693604420469,0.17243998,213.51,213.06,0.86219438]
[1693604420776,0.17243998,213.5,213.06,0.86219438]
[1693604420974,0.17243998,213.49,213.06,0.86219438]
[1693604421174,0.17243998,213.48,213.06,0.86219438]
[1693604421474,0.17243998,213.47,213.06,0.86219438]
[1693604421675,0.17243998,213.46,213.06,0.93913136]
[1693604421870,0.17243998,213.45,213.07,0.86219438]
[1693604422177,0.17243998,213.44,213.07,0.86219438]
[1693604422369,0.17243998,213.63,213.07,0.86219438]
[1693604422572,0.17243998,213.62,213.07,0.86219438]
[1693604422772,0.17243998,213.61,213.07,0.86219438]
[1693604422972,0.17243998,213.6,213.07,0.86219438]
[1693604423169,0.17243998,213.59,213.07,0.86219438]
[1693604423372,0.17243998,213.58,213.07,0.86219438]
[1693604423574,0.17243998,213.57,213.07,0.86219438]
[1693604423771,0.17243998,213.56,213.07,0.86219438]
[1693604423972,0.17243998,213.55,213.07,0.86219438]
[1693604424174,0.17243998,213.54,213.07,0.86219438]
[1693604424374,0.17243998,213.53,213.07,0.93913136]
[1693604424574,0.17243998,213.52,213.08,0.86219438]
[1693604424771,0.17243998,213.51,213.08,0.86219438]
[1693604424977,0.17243998,213.5,213.08,0.86219438]
[1693604425170,0.17243998,213.49,213.08,0.86219438]
[1693604425370,0.17243998,213.62,213.08,0.86219438]
[1693604425572,0.17243998,213.61,213.08,0.86219438]
[1693604425772,0.17243998,213.6,213.08,0.86219438]
[1693604425970,0.17243998,213.59,213.08,0.86219438]
[1693604426170,0.17243998,213.58,213.08,0.86219438]
[1693604426471,0.17243998,213.57,213.08,0.93913136]
[1693604426673,0.17243998,213.56,213.09,0.86219438]
[1693604426868,0.17243998,213.61,213.09,0.86219438]
[1693604427070,0.17243998,213.6,213.09,0.86219438]
[1693604427269,0.17243998,213.59,213.09,0.93913136]
[1693604427471,0.17243998,213.58,213.1,0.86219438]
[1693604427771,0.17243998,213.57,213.1,0.86219438]
[1693604427975,0.17243998,213.56,213.1,0.86219438]
[1693604428175,0.17243998,213.6,213.1,0.86219438]
[1693604428378,0.17243998,213.59,213.1,0.93913136]
[1693604428676,0.17243998,213.58,213.11,0.86219438]
[1693604428870,0.17243998,213.57,213.11,0.86219438]
[1693604429071,0.17243998,213.56,213.11,0.86219438]
[1693604429375,0.17243998,213.55,213.11,0.93913136]
[1693604429676,0.17243998,213.54,213.11,0.07693698]
[1693604429877,0.17243998,213.53,213.11,0.07693698]
[1693604430076,0.17243998,213.58,213.11,0.07693698]
[1693604430277,0.17243998,213.57,213.11,0.07693698]
[1693604430470,0.17243998,213.56,213.12,0.07693698]
[1693604430672,0.17243998,213.55,213.12,0.07693698]
[1693604430871,0.17243998,213.54,213.12,0.07693698]
[1693604431070,0.17243998,213.53,213.12,0.07693698]
[1693604431274,0.17243998,213.52,213.16,0.07693698]
[1693604431474,0.17243998,213.51,213.16,0.07693698]
[1693604431673,0.17243998,213.5,213.16,0.07693698]
[1693604431873,0.17243998,213.49,213.16,0.07693698]
[1693604432072,0.17243998,213.48,213.16,0.07693698]
[1693604432275,0.17243998,213.47,213.16,0.07693698]
[1693604432478,0.17243998,213.46,213.16,0.07693698]
[1693604432678,0.17243998,213.45,213.17,0.07693698]
[1693604432877,0.17243998,213.44,213.17,0.07693698]
[1693604433075,0.17243998,213.43,213.16,0.07693698]
[1693604433281,5.10800437,213.55,213.16,0.07693698]
[1693604433475,0.1724269,213.54,213.16,0.07693698]
[1693604437374,0.1724269,213.54,213.15,0.07693698]
[1693604437976,5.28043127,213.54,213.15,0.07693698]
[1693604438174,0.1724269,213.53,213.16,0.07693698]
[1693604438381,0.1724269,213.52,213.15,0.07693698]
[1693604438577,0.1724269,213.54,213.15,0.07693698]
[1693604438777,0.1724269,213.53,213.15,0.07693698]
[1693604438976,0.1724269,213.52,213.15,0.07693698]
[1693604439176,0.1724269,213.51,213.15,0.07693698]
[1693604439380,0.1724269,213.5,213.15,0.07693698]
[1693604439574,0.1724269,213.49,213.15,0.07693698]
[1693604439780,0.1724269,213.48,213.15,0.07693698]
[1693604439975,0.1724269,213.47,213.15,0.07693698]
[1693604440178,0.1724269,213.46,213.15,0.07693698]
[1693604440375,0.1724269,213.45,213.15,0.07693698]
[1693604440579,0.1724269,213.44,213.15,0.07693698]
[1693604440780,0.1724269,213.43,213.15,0.07693698]
[1693604440980,5.10800437,213.54,213.15,0.07693698]
[1693604441175,0.17242599,213.53,213.15,0.07693698]
[1693604444584,0.17242599,213.53,213.14,0.07693698]
[1693604444781,0.17242599,213.53,213.15,0.07693698]
[1693604444981,0.17242599,213.53,213.14,0.07693698]
[1693604445181,0.17242599,213.53,213.15,0.07693698]
[1693604445379,0.17242599,213.53,213.14,0.07693698]
[1693604447284,0.17242599,213.53,213.15,0.07693698]
[1693604447481,0.17242599,213.53,213.14,0.07693698]
[1693604449481,5.28043036,213.53,213.13,0.07693698]
[1693604449680,0.17242599,213.52,213.13,0.07693698]
[1693604452390,5.28043036,213.52,213.12,0.07693698]
[1693604452692,0.17242599,213.51,213.12,0.07693698]
[1693604453089,0.17242599,213.5,213.13,0.07693698]
[1693604453391,0.17242599,213.49,213.13,0.07693698]
[1693604453687,0.17242599,213.48,213.13,0.07693698]
[1693604453889,0.17242599,213.47,213.13,0.07693698]
[1693604454084,0.17242599,213.46,213.13,0.07693698]
[1693604454287,0.17242599,213.52,213.13,0.07693698]
[1693604454584,0.17242599,213.51,213.13,0.07693698]
[1693604454787,0.17242599,213.5,213.13,0.07693698]
[1693604454987,0.17242599,213.49,213.13,0.07693698]
[1693604455188,0.17242599,213.48,213.13,0.07693698]
[1693604455388,0.17242599,213.47,213.13,0.07693698]
[1693604455586,0.17242599,213.46,213.13,0.07693698]
[1693604455784,0.17242599,213.45,213.13,0.07693698]
[1693604455988,0.17242599,213.44,213.13,0.07693698]
[1693604456187,0.17242599,213.43,213.13,0.07693698]
[1693604456388,5.10800437,213.53,213.13,0.07693698]
[1693604456585,0.17242251,213.52,213.13,0.07693698]
[1693604457090,0.17242251,213.52,213.14,0.07693698]
[1693604457283,0.17242251,213.51,213.18,0.07693698]
[1693604457487,0.17242251,213.5,213.17,0.07693698]
[1693604457684,0.17242251,213.49,213.18,0.86180464]
[1693604457888,12.25921049,213.61,213.18,0.86180464]
[1693604458088,12.25921049,213.61,213.17,0.07693698]
[1693604458089,0.17236129,213.6,213.17,0.07693698]
[1693604458289,0.17236129,213.6,213.16,0.07693698]
[1693604458490,0.17236129,213.6,213.17,0.86181191]
[1693604458993,0.17236129,213.59,213.17,0.86181191]
[1693604459288,0.17236129,213.58,213.17,0.86181191]
[1693604459492,0.17236129,213.57,213.18,0.86181191]
[1693604459792,0.17236129,213.56,213.15,0.07693698]
[1693604459987,0.17236129,213.55,213.16,0.86180471]
[1693604460188,0.17236129,213.54,213.16,0.86180471]
[1693604460393,0.17236129,213.53,213.16,0.86180471]
[1693604460585,0.17236129,213.52,213.16,0.86180471]
[1693604460790,0.17236129,213.51,213.16,0.86180471]
[1693604461091,0.17236129,213.5,213.16,0.86180471]
[1693604461387,0.17236129,213.49,213.16,0.86180471]
[1693604461694,5.10800437,213.63,213.16,0.86180471]
[1693604461893,0.17236194,213.62,213.16,0.86180471]
[1693604462588,0.17236194,213.62,213.17,0.86180471]
[1693604462795,0.17236194,213.62,213.18,0.86180471]
[1693604462988,0.17236194,213.62,213.14,0.07693698]
[1693604463293,0.17236194,213.62,213.15,0.8618095]
[1693604463495,0.17236194,213.61,213.15,0.8618095]
[1693604463689,0.17236194,213.6,213.15,0.8618095]
[1693604463893,0.17236194,213.59,213.15,0.8618095]
[1693604464088,0.17236194,213.58,213.15,0.8618095]